[Event "European Rapid Championship 2021"]
[Site "Katowice"]
[Date "2021.12.19"]
[Round "8.9"]
[White "Golubovskis, Maksims"]
[Black "Krawczyk, Wojciech"]
[Result "0-1"]
[ECO "B12"]
[WhiteElo "2210"]
[BlackElo "1868"]
[Annotator "ChessBase"]
[PlyCount "140"]
[EventDate "2021.12.18"]
[EventType "swiss"]
[EventCountry "POL"]
[SourceTitle "playchess.com"]
[Source "ChessBase"]
[SourceQuality "1"]
[TimeControl "900+10"]

1. e4 {[%emt 0:00:21]} c6 {[%emt 0:00:04]} 2. d4 {[%emt 0:00:36]} d5 {[%emt 0:
00:07]} 3. e5 {[%emt 0:00:06]} c5 {[%emt 0:00:25]} 4. dxc5 {[%emt 0:00:08]} Nc6
{[%emt 0:00:01]} 5. Nf3 {[%emt 0:00:08]} Bg4 {[%emt 0:00:03]} 6. Bb5 {[%emt 0:
03:26]} e6 {[%emt 0:00:26]} 7. b4 {[%emt 0:00:24]} Nge7 {[%emt 0:00:22]} 8. O-O
{[%emt 0:00:17]} Ng6 {[%emt 0:00:52]} 9. Bb2 {[%emt 0:01:19]} Be7 {[%emt 0:00:
49]} 10. Nbd2 {[%emt 0:02:02]} Bg5 {[%emt 0:00:58]} 11. Nb3 {[%emt 0:01:16]}
O-O {[%emt 0:04:12]} 12. Bxc6 {[%emt 0:00:00]} bxc6 {[%emt 0:00:01]} 13. h3 {
[%emt 0:01:38]} Bxf3 {[%emt 0:00:19]} 14. Qxf3 {[%emt 0:00:05]} Qb8 {[%emt 0:
00:01]} 15. Qg4 {[%emt 0:00:11]} Bf4 {[%emt 0:00:32]} 16. a3 {[%emt 0:02:05]}
Bxe5 {[%emt 0:00:06]} 17. Nd4 {[%emt 0:01:25]} Bxd4 {[%emt 0:00:25]} 18. Qxd4 {
[%emt 0:00:07]} e5 {[%emt 0:00:11]} 19. Qd2 {[%emt 0:00:06]} Qb5 {[%emt 0:00:
23]} 20. Rfe1 {[%emt 0:00:21]} Rfe8 {[%emt 0:00:07]} 21. h4 {[%emt 0:00:40]} f6
{[%emt 0:00:19]} 22. g3 {[%emt 0:00:22]} Qc4 {[%emt 0:00:12]} 23. a4 {[%emt 0:
00:46]} a6 {[%emt 0:00:09]} 24. Ra3 {[%emt 0:00:12]} Rab8 {[%emt 0:00:31]} 25.
Rb3 {[%emt 0:00:01]} Ne7 {[%emt 0:01:22]} 26. Ba3 {[%emt 0:00:27]} d4 {[%emt 0:
00:19]} 27. Qd3 {[%emt 0:00:44]} Qxd3 {[%emt 0:00:20]} 28. cxd3 {[%emt 0:00:01]
} Nd5 {[%emt 0:00:02]} 29. Reb1 {[%emt 0:00:27]} Nc3 {[%emt 0:00:17]} 30. Ra1 {
[%emt 0:00:02]} Rb7 {[%emt 0:00:19]} 31. Bb2 {[%emt 0:00:08]} Nd5 {[%emt 0:00:
07]} 32. b5 {[%emt 0:00:16]} axb5 {[%emt 0:00:18]} 33. axb5 {[%emt 0:00:06]}
Rxb5 {[%emt 0:00:09]} 34. Rxb5 {[%emt 0:00:01]} cxb5 {[%emt 0:00:01]} 35. Ra5 {
[%emt 0:00:19]} Nb4 {[%emt 0:01:28]} 36. Rxb5 {[%emt 0:00:13]} Nxd3 {[%emt 0:
00:03]} 37. Ba3 {[%emt 0:00:09]} Rc8 {[%emt 0:00:52]} 38. Kf1 {[%emt 0:00:15]}
e4 {[%emt 0:00:08]} 39. Ke2 {[%emt 0:00:08]} Ne5 {[%emt 0:01:22]} 40. Rb4 {
[%emt 0:00:03]} Ra8 {[%emt 0:00:17]} 41. Rb3 {[%emt 0:00:17]} d3+ {[%emt 0:00:
28]} 42. Kd1 {[%emt 0:00:15]} Nc4 43. Bc1 Rc8 {[%emt 0:01:43]} 44. Rb5 {
[%emt 0:00:01]} Kf7 {[%emt 0:00:01]} 45. Bf4 {[%emt 0:00:13]} Ke6 {[%emt 0:00:
07]} 46. Bb8 {[%emt 0:00:17]} Kd5 {[%emt 0:00:36]} 47. Ba7 {[%emt 0:00:00]} Ra8
{[%emt 0:00:45]} 48. Rb7 {[%emt 0:00:20]} Ne5 {[%emt 0:00:13]} 49. Rxg7 {
[%emt 0:00:19]} Nc6 {[%emt 0:00:03]} 50. Bb6 {[%emt 0:00:12]} Ra1+ 51. Kd2 Ra2+
{[%emt 0:00:10]} 52. Ke1 {[%emt 0:00:21]} Nd4 {[%emt 0:00:12]} 53. Rd7+ {
[%emt 0:00:08]} Kc4 {[%emt 0:00:01]} 54. g4 {[%emt 0:00:15]} d2+ {[%emt 0:00:
15]} 55. Kd1 {[%emt 0:00:02]} Nf3 {[%emt 0:00:35]} 56. c6 {[%emt 0:00:10]} Kc3
{[%emt 0:00:08]} 57. Ke2 {[%emt 0:00:15]} Ra1 {[%emt 0:00:04]} 58. Ke3 Ra8 {
[%emt 0:00:18]} 59. c7 {[%emt 0:00:10]} Kc2 {[%emt 0:00:04]} 60. Ba7 {[%emt 0:
00:14]} Rc8 {[%emt 0:00:05]} 61. Bb6 {[%emt 0:00:18]} d1=Q {[%emt 0:00:05]} 62.
Rxd1 {[%emt 0:00:00]} Kxd1 {[%emt 0:00:01]} 63. Kxe4 {[%emt 0:00:01]} Nxh4 {
[%emt 0:00:06]} 64. Kd5 {[%emt 0:00:00]} Nf3 65. Ke6 {[%emt 0:00:13]} Ne5 {
[%emt 0:00:34]} 66. Kd6 {[%emt 0:00:21]} Nc4+ {[%emt 0:00:18]} 67. Kc6 {
[%emt 0:00:01]} Nxb6 {[%emt 0:00:15]} 68. Kxb6 {[%emt 0:00:01]} Ke2 {[%emt 0:
00:01]} 69. f4 {[%emt 0:00:01]} Kf3 {[%emt 0:00:01]} 70. g5 {[%emt 0:00:01]} f5
{[%emt 0:00:05]} 0-1

[Event "European Rapid Championship 2021"]
[Site "Katowice"]
[Date "2021.12.19"]
[Round "8.10"]
[White "Fridman, Daniel"]
[Black "Budrewicz, Krzysztof"]
[Result "1-0"]
[ECO "E62"]
[WhiteElo "2626"]
[BlackElo "2281"]
[Annotator "ChessBase"]
[PlyCount "149"]
[EventDate "2021.12.18"]
[EventType "swiss"]
[EventCountry "POL"]
[SourceTitle "playchess.com"]
[Source "ChessBase"]
[SourceQuality "1"]
[TimeControl "900+10"]

1. d4 {[%emt 0:00:04]} Nf6 {[%emt 0:00:03]} 2. c4 {[%emt 0:00:02]} g6 {[%emt 0:
00:17]} 3. Nc3 {[%emt 0:00:04]} Bg7 {[%emt 0:00:03]} 4. g3 {[%emt 0:00:04]} O-O
{[%emt 0:00:03]} 5. Bg2 {[%emt 0:00:01]} d6 {[%emt 0:00:04]} 6. Nf3 {[%emt 0:
00:02]} Nc6 {[%emt 0:00:26]} 7. O-O {[%emt 0:00:03]} e5 {[%emt 0:00:05]} 8. d5
{[%emt 0:00:13]} Nb8 {[%emt 0:00:14]} 9. e4 {[%emt 0:00:28]} a5 {[%emt 0:00:17]
} 10. a3 {[%emt 0:00:02]} Nbd7 {[%emt 0:01:00]} 11. Be3 {[%emt 0:00:26]} Ng4 {
[%emt 0:00:45]} 12. Bg5 {[%emt 0:00:02]} f6 {[%emt 0:00:01]} 13. Bd2 {[%emt 0:
00:04]} f5 {[%emt 0:00:18]} 14. h3 {[%emt 0:01:46]} Ngf6 {[%emt 0:00:10]} 15.
exf5 {[%emt 0:01:17]} gxf5 {[%emt 0:00:11]} 16. Qc2 {[%emt 0:03:31]} Nc5 {
[%emt 0:02:06]} 17. b4 {[%emt 0:00:06]} Nce4 {[%emt 0:00:02]} 18. Rad1 {
[%emt 0:02:38]} axb4 {[%emt 0:00:24]} 19. axb4 {[%emt 0:00:02]} Nxd2 {[%emt 0:
00:03]} 20. Rxd2 {[%emt 0:00:02]} Bh6 {[%emt 0:00:45]} 21. Rdd1 {[%emt 0:00:14]
} Bd7 {[%emt 0:00:13]} 22. Nh4 {[%emt 0:00:18]} Nh5 {[%emt 0:00:37]} 23. c5 {
[%emt 0:02:30]} f4 {[%emt 0:02:00]} 24. Qe2 {[%emt 0:00:02]} Ng7 {[%emt 0:01:
33]} 25. Ne4 {[%emt 0:01:33]} Qe7 {[%emt 0:00:01]} 26. Nf3 {[%emt 0:00:18]}
fxg3 {[%emt 0:00:46]} 27. fxg3 {[%emt 0:00:02]} Nf5 {[%emt 0:00:03]} 28. g4 {
[%emt 0:00:17]} Ne3 {[%emt 0:01:51]} 29. g5 {[%emt 0:00:01]} Nxg2 {[%emt 0:00:
02]} 30. Qxg2 {[%emt 0:00:07]} Bg7 {[%emt 0:00:05]} 31. Nfd2 {[%emt 0:00:40]}
Kh8 {[%emt 0:00:19]} 32. Rxf8+ {[%emt 0:00:02]} Rxf8 {[%emt 0:00:04]} 33. Rf1 {
[%emt 0:00:02]} Rf4 {[%emt 0:00:13]} 34. Qg3 {[%emt 0:01:06]} Rxf1+ {[%emt 0:
01:09]} 35. Nxf1 {[%emt 0:00:02]} Qf7 {[%emt 0:00:04]} 36. Ne3 {[%emt 0:01:16]}
Qg6 {[%emt 0:00:31]} 37. Qf3 {[%emt 0:00:14]} h6 {[%emt 0:00:35]} 38. h4 {
[%emt 0:00:02]} dxc5 {[%emt 0:01:55]} 39. bxc5 {[%emt 0:00:01]} b5 {[%emt 0:00:
26]} 40. h5 {[%emt 0:00:13]} Qe8 {[%emt 0:00:11]} 41. c6 {[%emt 0:00:02]} Bc8 {
[%emt 0:00:05]} 42. g6 {[%emt 0:00:56]} b4 {[%emt 0:00:20]} 43. Nc4 {[%emt 0:
00:02]} Qe7 {[%emt 0:00:35]} 44. d6 {[%emt 0:00:03]} cxd6 {[%emt 0:00:03]} 45.
Ncxd6 {[%emt 0:00:01]} Qa7+ {[%emt 0:00:22]} 46. Qf2 {[%emt 0:00:14]} Qa1+ {
[%emt 0:00:04]} 47. Kh2 {[%emt 0:00:27]} Be6 {[%emt 0:00:09]} 48. c7 {[%emt 0:
00:43]} b3 {[%emt 0:00:13]} 49. Qc5 {[%emt 0:00:11]} Qa2+ {[%emt 0:01:15]} 50.
Kg3 {[%emt 0:00:03]} Qa8 {[%emt 0:00:01]} 51. c8=Q+ {[%emt 0:00:12]} Bxc8 {
[%emt 0:00:01]} 52. Qxc8+ {[%emt 0:00:02]} Qxc8 {[%emt 0:00:01]} 53. Nxc8 {
[%emt 0:00:01]} b2 {[%emt 0:00:01]} 54. Nd2 {[%emt 0:00:01]} Bf8 {[%emt 0:00:
46]} 55. Nb6 {[%emt 0:00:09]} Bb4 {[%emt 0:00:16]} 56. Nb1 {[%emt 0:00:04]} Kg7
{[%emt 0:00:02]} 57. Nd7 {[%emt 0:00:07]} Bd6 {[%emt 0:00:12]} 58. Kf3 {
[%emt 0:00:02]} e4+ {[%emt 0:00:16]} 59. Kxe4 {[%emt 0:00:02]} Bg3 {[%emt 0:00:
02]} 60. Kf5 {[%emt 0:00:02]} Bf2 {[%emt 0:00:04]} 61. Ke6 {[%emt 0:00:02]} Bd4
{[%emt 0:00:03]} 62. Ne5 {[%emt 0:00:04]} Be3 {[%emt 0:00:07]} 63. Nc4 {
[%emt 0:00:04]} Bc1 {[%emt 0:00:01]} 64. Nc3 {[%emt 0:00:07]} Kg8 {[%emt 0:00:
10]} 65. Nd6 {[%emt 0:00:10]} Bd2 {[%emt 0:00:05]} 66. Nb1 {[%emt 0:00:02]} Bc1
{[%emt 0:00:01]} 67. Nf5 {[%emt 0:00:05]} Bf4 {[%emt 0:00:02]} 68. Kd5 {
[%emt 0:00:30]} Kf8 {[%emt 0:00:13]} 69. Kc4 {[%emt 0:00:02]} Be5 {[%emt 0:00:
10]} 70. Nxh6 {[%emt 0:00:06]} Kg7 {[%emt 0:00:00]} 71. Ng4 {[%emt 0:00:03]}
Bf4 {[%emt 0:00:01]} 72. Kd5 {[%emt 0:00:04]} Bc1 {[%emt 0:00:04]} 73. Ke6 {
[%emt 0:00:02]} Bf4 {[%emt 0:00:02]} 74. Kf5 {[%emt 0:00:02]} Bc1 {[%emt 0:00:
01]} 75. h6+ {[%emt 0:00:03]} 1-0

[Event "European Rapid Championship 2021"]
[Site "Katowice"]
[Date "2021.12.19"]
[Round "8.10"]
[White "Paszewski, Mateusz"]
[Black "Rog, Bartlomiej"]
[Result "1/2-1/2"]
[ECO "A04"]
[WhiteElo "2202"]
[BlackElo "1859"]
[Annotator "NA"]
[PlyCount "75"]
[EventDate "2021.12.18"]
[EventType "swiss"]
[EventCountry "POL"]
[SourceTitle "playchess.com"]
[Source "ChessBase"]
[SourceQuality "1"]
[TimeControl "900+10"]

1. Nf3 {[%emt 0:00:02]} f5 {[%emt 0:00:10]} 2. g3 {[%emt 0:01:10]} Nf6 {
[%emt 0:00:02]} 3. Bg2 {[%emt 0:00:01]} e6 {[%emt 0:00:08]} 4. O-O {[%emt 0:00:
05]} Be7 {[%emt 0:00:02]} 5. c4 {[%emt 0:00:13]} O-O {[%emt 0:00:04]} 6. Nc3 {
[%emt 0:00:03]} d6 {[%emt 0:01:20]} 7. d4 {[%emt 0:00:09]} Ne4 {[%emt 0:00:02]}
8. Qc2 {[%emt 0:00:04]} Nxc3 {[%emt 0:00:03]} 9. bxc3 {[%emt 0:00:05]} Nc6 {
[%emt 0:00:52]} 10. e4 {[%emt 0:00:23]} fxe4 {[%emt 0:00:57]} 11. Qxe4 {
[%emt 0:00:06]} Bf6 {[%emt 0:00:01]} 12. Bf4 {[%emt 0:00:09]} Re8 {[%emt 0:00:
32]} 13. Rad1 {[%emt 0:00:13]} Bd7 {[%emt 0:03:51]} 14. Rfe1 {[%emt 0:01:36]}
Rb8 {[%emt 0:00:28]} 15. Bh3 {[%emt 0:04:14]} Kh8 {[%emt 0:01:48]} 16. Qc2 {
[%emt 0:01:43]} b6 {[%emt 0:02:46]} 17. Re2 {[%emt 0:02:35]} Na5 {[%emt 0:00:
21]} 18. c5 {[%emt 0:00:01]} Nc4 {[%emt 0:01:57]} 19. cxd6 {[%emt 0:00:16]}
cxd6 {[%emt 0:00:04]} 20. Rde1 {[%emt 0:00:07]} Qc8 {[%emt 0:01:14]} 21. Bg5 {
[%emt 0:02:02]} e5 {[%emt 0:00:31]} 22. Bxd7 {[%emt 0:00:03]} Qxd7 {[%emt 0:00:
01]} 23. dxe5 {[%emt 0:00:10]} Nxe5 {[%emt 0:01:20]} 24. Nxe5 {[%emt 0:00:03]}
dxe5 {[%emt 0:00:01]} 25. Bxf6 {[%emt 0:00:06]} gxf6 {[%emt 0:00:01]} 26. Rd2 {
[%emt 0:00:10]} Qe7 {[%emt 0:00:30]} 27. Red1 {[%emt 0:02:16]} Rbd8 {[%emt 0:
00:01]} 28. Qa4 {[%emt 0:00:00]} Rxd2 {[%emt 0:00:22]} 29. Rxd2 {[%emt 0:00:01]
} Rd8 {[%emt 0:00:00]} 30. Rxd8+ {[%emt 0:00:03]} Qxd8 {[%emt 0:00:01]} 31.
Qxa7 {[%emt 0:00:01]} Qd1+ {[%emt 0:00:01]} 32. Kg2 {[%emt 0:00:01]} Qd5+ {
[%emt 0:00:01]} 33. Kh3 {[%emt 0:00:02]} Qe6+ {[%emt 0:00:01]} 34. Kg2 {
[%emt 0:00:30]} Qd5+ {[%emt 0:00:02]} 35. Kf1 {[%emt 0:00:36]} Qd1+ {[%emt 0:
00:02]} 36. Kg2 {[%emt 0:00:01]} Qd5+ {[%emt 0:00:01]} 37. Kh3 {[%emt 0:00:08]}
Qe6+ {[%emt 0:00:18]} 38. Kg2 {[%emt 0:01:15]} 1/2-1/2

[Event "European Rapid Championship 2021"]
[Site "Katowice"]
[Date "2021.12.19"]
[Round "8.11"]
[White "Szwed, Jacek"]
[Black "Pultinevicius, Paulius"]
[Result "0-1"]
[ECO "B17"]
[WhiteElo "2372"]
[BlackElo "2536"]
[Annotator "ChessBase"]
[PlyCount "114"]
[EventDate "2021.12.18"]
[EventType "swiss"]
[EventCountry "POL"]
[SourceTitle "playchess.com"]
[Source "ChessBase"]
[SourceQuality "1"]
[TimeControl "900+10"]

1. e4 {[%emt 0:01:46]} c6 {[%emt 0:00:01]} 2. d4 {[%emt 0:00:02]} d5 {[%emt 0:
00:01]} 3. Nd2 {[%emt 0:00:11]} dxe4 {[%emt 0:00:04]} 4. Nxe4 {[%emt 0:00:01]}
Nd7 {[%emt 0:00:02]} 5. Ng5 {[%emt 0:00:33]} Ngf6 {[%emt 0:00:06]} 6. Bd3 {
[%emt 0:00:02]} e6 {[%emt 0:00:05]} 7. Qe2 {[%emt 0:00:11]} Bd6 {[%emt 0:00:03]
} 8. N1f3 {[%emt 0:00:02]} h6 {[%emt 0:00:04]} 9. Ne4 {[%emt 0:00:02]} Nxe4 {
[%emt 0:00:03]} 10. Qxe4 {[%emt 0:00:01]} Qc7 {[%emt 0:00:04]} 11. Qg4 {
[%emt 0:00:03]} Kf8 {[%emt 0:00:01]} 12. O-O {[%emt 0:00:05]} b6 {[%emt 0:00:
12]} 13. b3 {[%emt 0:00:40]} Bb7 {[%emt 0:01:04]} 14. Bb2 {[%emt 0:00:08]} Nf6
{[%emt 0:00:14]} 15. Qh4 {[%emt 0:03:57]} Nd5 {[%emt 0:00:02]} 16. Rfe1 {
[%emt 0:03:40]} Nf4 {[%emt 0:00:44]} 17. Bf1 {[%emt 0:01:26]} g5 {[%emt 0:01:
08]} 18. Nxg5 {[%emt 0:00:09]} Be7 {[%emt 0:00:29]} 19. g3 {[%emt 0:02:55]}
Bxg5 {[%emt 0:00:15]} 20. Qg4 {[%emt 0:00:00]} Nd5 {[%emt 0:00:03]} 21. c4 {
[%emt 0:00:10]} Nf6 {[%emt 0:10:37]} 22. Qf3 {[%emt 0:00:01]} Rg8 {[%emt 0:01:
28]} 23. d5 {[%emt 0:00:45]} cxd5 {[%emt 0:00:01]} 24. Bxf6 {[%emt 0:00:02]}
dxc4 {[%emt 0:00:14]} 25. Be5 {[%emt 0:01:41]} Bxf3 26. Bxc7 Bd2 {[%emt 0:00:
16]} 27. Bd6+ {[%emt 0:00:30]} Kg7 {[%emt 0:00:17]} 28. Bxc4 {[%emt 0:00:04]}
Bxe1 {[%emt 0:00:01]} 29. Rxe1 {[%emt 0:00:00]} Rgd8 {[%emt 0:00:07]} 30. Be5+
{[%emt 0:00:06]} Kg6 {[%emt 0:00:02]} 31. Bc3 {[%emt 0:00:20]} Rd1 {[%emt 0:00:
04]} 32. Rxd1 {[%emt 0:00:06]} Bxd1 {[%emt 0:00:01]} 33. Kf1 {[%emt 0:00:00]}
Rd8 {[%emt 0:00:02]} 34. Kg2 {[%emt 0:00:10]} Bc2 {[%emt 0:00:04]} 35. Bb5 {
[%emt 0:00:14]} Be4+ {[%emt 0:00:04]} 36. f3 {[%emt 0:00:01]} Rc8 {[%emt 0:00:
12]} 37. Bc4 {[%emt 0:00:14]} Bb1 {[%emt 0:00:17]} 38. a4 {[%emt 0:00:31]} Rd8
{[%emt 0:00:04]} 39. a5 {[%emt 0:00:31]} Bd3 {[%emt 0:00:07]} 40. axb6 {
[%emt 0:00:12]} axb6 {[%emt 0:00:02]} 41. Kf2 {[%emt 0:00:04]} Bxc4 {[%emt 0:
00:02]} 42. bxc4 {[%emt 0:00:01]} Rd3 {[%emt 0:00:16]} 43. Be5 {[%emt 0:00:03]}
h5 {[%emt 0:00:59]} 44. Ke2 {[%emt 0:00:27]} Rb3 {[%emt 0:00:04]} 45. Bd4 {
[%emt 0:00:02]} f6 {[%emt 0:00:04]} 46. h3 {[%emt 0:00:15]} e5 {[%emt 0:00:04]}
47. Be3 {[%emt 0:00:05]} Kf7 {[%emt 0:01:11]} 48. g4 {[%emt 0:00:08]} Kg6 {
[%emt 0:01:09]} 49. Kd2 {[%emt 0:00:11]} h4 {[%emt 0:00:18]} 50. Ke2 {[%emt 0:
00:11]} Rb2+ {[%emt 0:00:08]} 51. Bd2 {[%emt 0:00:20]} f5 {[%emt 0:00:27]} 52.
Ke3 {[%emt 0:00:16]} Rb3+ {[%emt 0:00:09]} 53. Kf2 {[%emt 0:00:13]} fxg4 {
[%emt 0:00:01]} 54. fxg4 {[%emt 0:00:09]} Rxh3 {[%emt 0:00:02]} 55. Be3 {
[%emt 0:00:01]} Rxe3 {[%emt 0:00:15]} 56. Kxe3 {[%emt 0:00:04]} h3 {[%emt 0:00:
03]} 57. Kf3 {[%emt 0:00:02]} e4+ {[%emt 0:00:01]} 0-1

[Event "European Rapid Championship 2021"]
[Site "Katowice"]
[Date "2021.12.19"]
[Round "8.11"]
[White "Snihur, Piotr"]
[Black "Cukrowski, Filip"]
[Result "0-1"]
[ECO "A15"]
[WhiteElo "2006"]
[BlackElo "2373"]
[Annotator "NA"]
[PlyCount "64"]
[EventDate "2021.12.18"]
[EventType "swiss"]
[EventCountry "POL"]
[SourceTitle "playchess.com"]
[Source "ChessBase"]
[SourceQuality "1"]
[TimeControl "900+10"]

1. c4 {[%emt 0:00:08]} Nf6 {[%emt 0:00:03]} 2. Nf3 {[%emt 0:00:03]} c5 {
[%emt 0:00:02]} 3. g3 {[%emt 0:00:08]} b6 {[%emt 0:00:01]} 4. Bg2 {[%emt 0:00:
03]} Bb7 {[%emt 0:00:01]} 5. O-O {[%emt 0:00:07]} d6 {[%emt 0:00:01]} 6. Nc3 {
[%emt 0:00:10]} g6 {[%emt 0:00:06]} 7. d4 {[%emt 0:00:40]} cxd4 {[%emt 0:00:02]
} 8. Nxd4 {[%emt 0:00:06]} Bxg2 {[%emt 0:00:04]} 9. Kxg2 {[%emt 0:00:02]} Bg7 {
[%emt 0:00:13]} 10. Bg5 {[%emt 0:01:11]} O-O {[%emt 0:00:10]} 11. Qd2 {[%emt 0:
00:58]} Qc8 {[%emt 0:00:47]} 12. b3 {[%emt 0:01:55]} Nc6 {[%emt 0:00:23]} 13.
Nf3 {[%emt 0:00:25]} Re8 {[%emt 0:00:23]} 14. Rac1 {[%emt 0:00:13]} Qb7 {
[%emt 0:00:26]} 15. e4 {[%emt 0:01:52]} a6 {[%emt 0:00:07]} 16. Rfe1 {[%emt 0:
00:45]} b5 {[%emt 0:00:04]} 17. Nd5 {[%emt 0:01:02]} Ng4 {[%emt 0:05:52]} 18.
cxb5 {[%emt 0:02:51]} axb5 {[%emt 0:00:01]} 19. Rxc6 {[%emt 0:00:03]} Qxc6 {
[%emt 0:00:01]} 20. Nxe7+ {[%emt 0:00:02]} Rxe7 {[%emt 0:00:01]} 21. Bxe7 {
[%emt 0:00:01]} Bc3 {[%emt 0:00:02]} 22. Rc1 {[%emt 0:00:31]} b4 {[%emt 0:00:
48]} 23. Qf4 {[%emt 0:03:31]} Re8 {[%emt 0:01:16]} 24. Qxg4 {[%emt 0:01:51]}
Rxe7 {[%emt 0:00:02]} 25. Nd4 {[%emt 0:00:24]} Qa8 {[%emt 0:04:42]} 26. Nb5 {
[%emt 0:00:09]} f5 {[%emt 0:00:28]} 27. Qf3 {[%emt 0:00:13]} fxe4 {[%emt 0:00:
24]} 28. Qe3 {[%emt 0:00:01]} Bd2 {[%emt 0:00:09]} 29. Rc8+ {[%emt 0:00:21]}
Qxc8 {[%emt 0:00:01]} 30. Qxd2 {[%emt 0:00:01]} Qb7 {[%emt 0:01:05]} 31. Qe2 {
[%emt 0:00:21]} e3+ {[%emt 0:00:13]} 32. f3 {[%emt 0:00:03]} Qd5 {[%emt 0:00:
27]} 0-1

[Event "European Rapid Championship 2021"]
[Site "Katowice"]
[Date "2021.12.19"]
[Round "8.12"]
[White "Klekowski, Maciej"]
[Black "Zakrzewski, Marek"]
[Result "1/2-1/2"]
[ECO "A12"]
[WhiteElo "2528"]
[BlackElo "2239"]
[Annotator "ChessBase"]
[PlyCount "91"]
[EventDate "2021.12.18"]
[EventType "swiss"]
[EventCountry "POL"]
[SourceTitle "playchess.com"]
[Source "ChessBase"]
[SourceQuality "1"]
[TimeControl "900+10"]

1. c4 {[%emt 0:00:02]} c6 {[%emt 0:00:02]} 2. Nf3 {[%emt 0:00:02]} d5 {[%emt 0:
00:02]} 3. b3 {[%emt 0:00:01]} Nf6 {[%emt 0:00:09]} 4. Bb2 {[%emt 0:00:01]} e6
{[%emt 0:00:02]} 5. g3 {[%emt 0:00:03]} Bd6 {[%emt 0:00:28]} 6. Bg2 {[%emt 0:
00:01]} Nbd7 {[%emt 0:00:09]} 7. O-O {[%emt 0:00:02]} O-O {[%emt 0:01:26]} 8.
d4 {[%emt 0:00:05]} Qe7 {[%emt 0:00:15]} 9. Nbd2 {[%emt 0:00:12]} Ne4 {[%emt 0:
01:22]} 10. Ne5 {[%emt 0:03:49]} f5 {[%emt 0:00:11]} 11. Nd3 {[%emt 0:00:43]}
a5 {[%emt 0:00:57]} 12. a4 {[%emt 0:00:17]} b6 {[%emt 0:00:21]} 13. Nf3 {
[%emt 0:00:53]} Ba6 {[%emt 0:00:57]} 14. Rc1 {[%emt 0:00:11]} Rac8 {[%emt 0:00:
19]} 15. Nfe5 {[%emt 0:00:53]} Nxe5 {[%emt 0:02:27]} 16. Nxe5 {[%emt 0:00:02]}
Bxe5 {[%emt 0:02:02]} 17. dxe5 {[%emt 0:00:02]} dxc4 {[%emt 0:00:02]} 18. Bxe4
{[%emt 0:00:10]} fxe4 {[%emt 0:00:11]} 19. bxc4 {[%emt 0:00:01]} Rcd8 {[%emt 0:
00:44]} 20. Qb3 {[%emt 0:03:52]} Qb4 {[%emt 0:00:08]} 21. Qxb4 {[%emt 0:00:01]}
axb4 {[%emt 0:00:02]} 22. Rfd1 {[%emt 0:00:01]} Rxd1+ {[%emt 0:00:41]} 23. Rxd1
{[%emt 0:00:01]} Bxc4 {[%emt 0:00:02]} 24. Rd4 {[%emt 0:00:01]} Bxe2 {[%emt 0:
00:50]} 25. Rxe4 {[%emt 0:00:28]} Bf3 {[%emt 0:00:15]} 26. Rxb4 {[%emt 0:00:03]
} Rd8 {[%emt 0:00:29]} 27. Rd4 {[%emt 0:00:00]} Rxd4 {[%emt 0:00:04]} 28. Bxd4
{[%emt 0:00:01]} Bd1 {[%emt 0:00:03]} 29. Bxb6 {[%emt 0:00:01]} Bxa4 {[%emt 0:
00:01]} 30. f3 {[%emt 0:00:08]} Kf7 {[%emt 0:00:04]} 31. Kf2 {[%emt 0:00:00]}
Bb3 {[%emt 0:00:25]} 32. Ke3 {[%emt 0:00:08]} Bd5 {[%emt 0:00:02]} 33. Bc5 {
[%emt 0:00:10]} Ke8 {[%emt 0:00:05]} 34. h4 {[%emt 0:00:03]} Kf7 {[%emt 0:00:
36]} 35. h5 {[%emt 0:00:04]} g6 {[%emt 0:00:24]} 36. g4 {[%emt 0:00:05]} gxh5 {
[%emt 0:00:01]} 37. gxh5 {[%emt 0:00:01]} Kg7 {[%emt 0:00:12]} 38. Kf4 {
[%emt 0:00:01]} Bc4 {[%emt 0:00:18]} 39. Kg5 {[%emt 0:00:05]} Bd5 {[%emt 0:00:
01]} 40. Kg4 {[%emt 0:00:11]} Bc4 {[%emt 0:00:06]} 41. f4 {[%emt 0:00:06]} Bd3
{[%emt 0:00:27]} 42. Kg5 {[%emt 0:00:54]} h6+ {[%emt 0:00:05]} 43. Kg4 {
[%emt 0:00:02]} Be2+ {[%emt 0:00:02]} 44. Kh4 {[%emt 0:00:01]} Bd3 {[%emt 0:00:
01]} 45. Be3 {[%emt 0:00:05]} Be2 {[%emt 0:00:09]} 46. Bc5 1/2-1/2

[Event "European Rapid Championship 2021"]
[Site "Katowice"]
[Date "2021.12.19"]
[Round "8.12"]
[White "Musial, Tomasz"]
[Black "Lewtak, Damian"]
[Result "0-1"]
[ECO "A41"]
[WhiteElo "1916"]
[BlackElo "2185"]
[Annotator "NA"]
[PlyCount "74"]
[EventDate "2021.12.18"]
[EventType "swiss"]
[EventCountry "POL"]
[SourceTitle "playchess.com"]
[Source "ChessBase"]
[SourceQuality "1"]
[TimeControl "900+10"]

1. d4 {[%emt 0:00:02]} d6 {[%emt 0:00:08]} 2. Nf3 {[%emt 0:00:02]} g6 {[%emt 0:
00:01]} 3. c4 {[%emt 0:00:03]} Bg7 {[%emt 0:00:02]} 4. g3 {[%emt 0:00:02]} e5 {
[%emt 0:00:01]} 5. Nc3 {[%emt 0:00:10]} Bg4 {[%emt 0:00:35]} 6. dxe5 {[%emt 0:
01:50]} dxe5 {[%emt 0:00:02]} 7. Qxd8+ {[%emt 0:00:02]} Kxd8 {[%emt 0:00:03]}
8. Bg2 {[%emt 0:00:01]} c6 {[%emt 0:00:27]} 9. O-O {[%emt 0:00:37]} Be6 {
[%emt 0:00:38]} 10. Rd1+ {[%emt 0:01:38]} Kc7 {[%emt 0:00:02]} 11. b3 {[%emt 0:
00:57]} f6 {[%emt 0:00:21]} 12. Ba3 {[%emt 0:00:20]} Nh6 {[%emt 0:00:02]} 13.
Rac1 {[%emt 0:00:41]} Bf8 {[%emt 0:01:41]} 14. Bxf8 {[%emt 0:02:16]} Rxf8 {
[%emt 0:00:02]} 15. Nb5+ {[%emt 0:00:06]} cxb5 {[%emt 0:00:56]} 16. cxb5+ {
[%emt 0:00:02]} Nc6 {[%emt 0:00:01]} 17. bxc6 {[%emt 0:00:15]} b5 {[%emt 0:00:
08]} 18. Ne1 {[%emt 0:02:11]} Rad8 {[%emt 0:01:17]} 19. Nd3 {[%emt 0:00:53]}
Nf5 {[%emt 0:00:30]} 20. Nc5 {[%emt 0:02:00]} Bc8 {[%emt 0:00:01]} 21. e3 {
[%emt 0:01:33]} Rxd1+ {[%emt 0:00:32]} 22. Rxd1 {[%emt 0:00:01]} Ne7 {[%emt 0:
00:07]} 23. Rc1 {[%emt 0:00:30]} Rd8 {[%emt 0:00:36]} 24. a4 {[%emt 0:00:25]}
b4 {[%emt 0:00:47]} 25. Ne4 {[%emt 0:01:35]} Nd5 {[%emt 0:01:22]} 26. Rc5 {
[%emt 0:00:35]} f5 {[%emt 0:01:46]} 27. Ng5 {[%emt 0:00:14]} Nc3 {[%emt 0:00:
02]} 28. h4 {[%emt 0:00:23]} e4 {[%emt 0:00:34]} 29. Nxh7 {[%emt 0:00:14]} Be6
{[%emt 0:00:02]} 30. Ra5 {[%emt 0:00:17]} Kb6 {[%emt 0:00:41]} 31. Re5 {
[%emt 0:00:01]} Bxb3 {[%emt 0:00:02]} 32. g4 {[%emt 0:00:20]} Bg8 {[%emt 0:00:
23]} 33. Nf6 {[%emt 0:00:08]} b3 {[%emt 0:00:16]} 34. c7 {[%emt 0:00:09]} Kxc7
{[%emt 0:00:46]} 35. Rc5+ {[%emt 0:00:04]} Kb6 {[%emt 0:00:04]} 36. Rxc3 {
[%emt 0:00:17]} b2 {[%emt 0:00:05]} 37. a5+ {[%emt 0:00:01]} Kxa5 {[%emt 0:00:
28]} 0-1